fUST/lending_fUST_20240104
["ID","MTS","AMOUNT","RATE_DAILY","PERIOD"]
[310049835,1704299447694,-5000.0,0.00042,20]
[310049836,1704299447705,-1452.65700044,0.00042,10]
[310049837,1704299447716,-4584.10600777,0.00042065,2]
[310049838,1704299447729,-257.0,0.00042192,4]
[310049840,1704299447737,-151.01131424,0.00042199,60]
[310049841,1704299447746,-1327.18059356,0.000422,30]
[310049844,1704299447756,-1999.0010419,0.00042546,120]
[310049845,1704299447766,-1000.0,0.00043,43]
[310049848,1704299447775,-3777.17366802,0.00043,7]
[310056522,1704299521581,-464.41430275,0.00025287,2]
[310056529,1704299521630,-724.96385982,0.00025287,2]
[310056535,1704299521679,-663.17724958,0.00025287,2]
[310056541,1704299521734,-759.71281646,0.00025287,2]
[310057726,1704299535447,-3332.42580222,0.00025287,2]
[310060693,1704299567116,-2744.0,0.00026398,2]
[310066831,1704299635823,-154.79876161,0.00026396,2]
[310066835,1704299635845,-0.20123839,0.00026398,2]
[310069028,1704299704988,-2508.36986414,0.00026397,2]
[310069029,1704299705010,-1819.06283426,0.00026398,2]
[310069030,1704299705041,-24881.5673016,0.00026624,2]
[310069035,1704299717944,2500.0,0.00043,120]
[310069040,1704299742330,250.0,0.00025396,2]
[310069049,1704299775030,-29681.0,0.00025449,2]
[310069050,1704299777776,5000.0,0.00024799,2]
[310069055,1704299813422,174.410864,0.00024174,2]
[310069058,1704299839582,-6084.95,0.00025436,3]
[310069059,1704299839607,-20831.85137104,0.00025436,2]
[310069060,1704299839628,-249.91407237,0.00025436,2]
[310069061,1704299839649,-253.17313502,0.00025436,2]
[310069062,1704299839670,-944.51958651,0.00025436,2]
[310069063,1704299839693,-30090.59183506,0.00025437,2]
[310069064,1704299856807,185.4297139,0.00024437,2]
[310069065,1704299890157,1524.9475313,0.00024431,2]
[310069067,1704299917925,155.13500391,0.00024431,2]
[310069068,1704299918951,-154.78330338,0.00025418,2]
[310069069,1704299918972,-612.96786415,0.00025419,2]
[310069070,1704299918997,-164.65816911,0.00025419,2]
[310069071,1704299919017,-154.78330338,0.00025419,2]
[310069072,1704299919039,-154.78330338,0.0002542,2]
[310069073,1704299919061,-166.16362772,0.0002542,2]
[310069074,1704299919082,-4431.99090233,0.0002542,2]
[310069075,1704299919103,-154.78330338,0.0002542,2]
[310069076,1704299919123,-590.516407,0.0002542,2]
[310069077,1704299919143,-1678.44623893,0.00025421,2]
[310069078,1704299919242,-2704.45519417,0.00025421,2]
[310069079,1704299919264,-20831.85137104,0.00025421,2]
[310069080,1704299919285,-321.94449774,0.00025422,2]
[310069081,1704299919307,-264.48060354,0.00025422,2]
[310069082,1704299919329,-2631.68489228,0.00025422,2]
[310069083,1704299919351,-2508.36986414,0.00025423,2]
[310069084,1704299919373,-154.78330338,0.00025423,4]
[310069085,1704299919396,-26377.44033991,0.00025425,2]
[310069086,1704299919418,-198.55633635,0.00025425,2]
[310069087,1704299919440,-2997.40556678,0.00025426,2]
[310069088,1704299919463,-466.12469227,0.00025432,2]
[310069089,1704299919484,-154.84515485,0.00025432,2]
[310069090,1704299919509,-19632.2086524,0.00025432,2]
[310069091,1704299919531,-155.22214716,0.00025432,2]
[310069092,1704299919552,-553.25941224,0.00025433,2]
[310069093,1704299919574,-10604.97710411,0.00025433,2]
[310069094,1704299919596,-253.17313502,0.00025436,2]
[310069095,1704299919618,-944.51958651,0.00025436,2]
[310069096,1704299919639,-154.84515485,0.00025436,2]
[310069097,1704299919660,-249.91407237,0.00025436,2]
[310069098,1704299919679,-154.84515485,0.00025436,2]
[310069099,1704299919701,-154.78330338,0.00025436,2]
[310069100,1704299919722,-223.69711736,0.00025436,2]
[310069101,1704299919747,-2027.03693589,0.00025436,2]
[310069102,1704299919770,-349.27054601,0.00025448,2]
[310069103,1704299919791,-9356.2426284,0.00025451,2]
[310069104,1704299919812,-524.98429826,0.00026,2]
[310069105,1704299919844,2812.20251198,0.00025419,2]
[310069106,1704299931143,155.01770803,0.00024431,2]
[310069108,1704299936481,154.78330338,0.00023756,4]
[310069109,1704299951144,154.84515485,0.00024431,2]
[310069110,1704299954378,154.76784823,0.00023755,4]
[310069111,1704299969140,189.64986795,0.00024431,2]
[310069112,1704299972370,154.76784823,0.00023755,4]
[310069113,1704299975065,-261.34893601,0.0002541,2]
[310069114,1704299975094,-641.96499442,0.0002541,2]
[310069115,1704299975121,-1193.2978632,0.00025411,2]
[310069116,1704299975149,-679.37734518,0.00025412,2]
[310069117,1704299975179,-399.38718748,0.00025413,2]
[310069118,1704299975208,-322.38366746,0.00025413,2]
[310069119,1704299975235,-859.47841956,0.00025413,2]
[310069120,1704299975262,-553.25941224,0.00025414,2]
[310069121,1704299975292,-3732.74533379,0.00025417,2]
[310069122,1704299975318,-3472.7300767,0.00025417,2]
[310069123,1704299975346,-5944.69403083,0.00025418,2]
[310069124,1704299975378,-17990.74199455,0.00025419,2]
[310069125,1704299977532,7932.20562033,0.0002541,2]
[310069126,1704299990374,154.76784823,0.00023755,4]
[310069127,1704299992326,1679.03405112,0.00023755,2]
[310069128,1704300047467,-154.76784823,0.00023506,4]
[310069129,1704300064396,154.76784823,0.00023276,4]
[310069130,1704300082396,154.76784823,0.00023275,4]
[310069131,1704300094719,-5000.0,0.00024096,2]
[310069132,1704300095000,-5000.0,0.00024096,2]
[310069133,1704300095296,-5000.0,0.00024096,2]
[310069134,1704300095540,-5000.0,0.00024096,2]
[310069135,1704300095576,-3563.3937685,0.00024096,2]
[310069136,1704300100385,154.76784823,0.00023275,4]
[310069137,1704300118388,154.76784823,0.00022222,4]
[310069138,1704300126546,24900.0,0.00023783,2]
[310069139,1704300134384,154.76784823,0.00022222,4]
[310069140,1704300152380,154.76784823,0.0002222,4]
[310069141,1704300168393,154.76784823,0.00022222,4]
[310069142,1704300170443,10551.4583699,0.00023693,2]
[310069143,1704300186393,154.76784823,0.00022218,4]
[310069144,1704300188366,685.29684082,0.00023693,2]
[310069145,1704300204398,154.76784823,0.00022218,4]
[310069146,1704300210355,684.72993758,0.00023693,2]
[310069147,1704300215660,5000.0,0.00023686,2]
[310069148,1704300222429,154.76784823,0.00022218,4]
[310069149,1704300230377,366.53515123,0.00023693,2]
[310069150,1704300230510,250.0,0.00023684,2]
[310069151,1704300244713,154.76784823,0.00022208,4]
[310069152,1704300268410,154.76784823,0.00022208,4]
[310069153,1704300282914,3144.4570191,0.00023677,2]
[310069154,1704300286408,1.94322728,0.00022208,4]
[310069155,1704300286438,152.82462095,0.00022208,4]
[310069156,1704300304411,154.76784823,0.00022196,4]
[310069157,1704300319486,-200.0,0.00023677,2]
[310069158,1704300319617,-2.06554559,0.00023677,2]
[310069159,1704300320707,165.2029838,0.00023677,2]
[310069160,1704300321876,32.73147061,0.00023677,2]
[310069161,1704300321911,200.0,0.00023677,2]
[310069162,1704300321945,23.8453835,0.00023677,2]
[310069163,1704300326423,154.76784823,0.00022196,4]
[310069164,1704300338865,-1118.948982,0.00023642,2]
[310069165,1704300338897,-129.29351163,0.00023676,2]
[310069166,1704300339043,-25.4743366,0.00023676,2]
[310069167,1704300344102,-3472.7300767,0.00024565,2]
[310069168,1704300344122,-321.94449774,0.00024565,2]
[310069169,1704300344142,-2804.5410618,0.00024566,2]
[310069170,1704300344163,-520.2185,0.00024567,2]
[310069171,1704300344185,-198.55633635,0.00024567,2]
[310069172,1704300344206,-172.35652391,0.00024568,2]
[310069173,1704300344228,-6550.84,0.00024655,3]
[310069174,1704300344247,-2997.40556678,0.00024656,2]
[310069175,1704300344268,-1130.43834714,0.00024657,3]
[310069176,1704300346584,154.76784823,0.00022196,4]
[310069177,1704300370587,154.76784823,0.00022106,4]
[310069178,1704300392600,154.76784823,0.00022106,4]
[310069179,1704300406606,154.76784823,0.00022106,4]
[310069180,1704300428591,154.76784823,0.00022104,4]
[310069181,1704300448604,154.75239617,0.00021739,4]
[310069182,1704300470604,154.75239617,0.00021739,4]
[310069184,1704300488604,154.75239617,0.00021737,4]
[310069185,1704300492563,-725.36585794,0.00023339,2]
[310069186,1704300492741,-14.80338486,0.00023339,2]
[310069187,1704300508621,154.75239617,0.00021737,4]
[310069188,1704300508813,739.625127,0.0002315,2]
[310069189,1704300509334,739.625127,0.0002315,2]
[310069190,1704300509935,739.625127,0.0002315,2]
[310069191,1704300510279,739.625127,0.0002315,2]
[310069192,1704300510882,739.625127,0.0002315,2]
[310069193,1704300512206,166.666666,0.00022757,2]
[310069194,1704300513352,-166.666666,0.00023377,2]
[310069195,1704300524897,-242.17543569,0.00023997,2]
[310069196,1704300526620,154.75239617,0.00021728,4]
[310069197,1704300527294,3.7374278,0.00023997,2]
[310069198,1704300527327,194.81890855,0.00023997,2]
[310069199,1704300529437,-154.75239617,0.00023997,2]
[310069200,1704300531498,154.75239617,0.00023997,2]
[310069201,1704300533835,-164.65816911,0.00023997,2]
[310069202,1704300538510,-166.666666,0.00023998,2]
[310069203,1704300538542,-165.57606011,0.00024044,2]
[310069204,1704300538799,-6.7804638,0.00024044,2]
[310069205,1704300547115,-6897.18,0.00024133,3]
[310069206,1704300547136,-2704.45519417,0.00024139,2]
[310069207,1704300547155,-1678.44623893,0.00024139,2]
[310069208,1704300547175,-7932.20562033,0.0002414,2]
[310069209,1704300547195,-590.516407,0.00024141,2]
[310069210,1704300547217,-399.38718748,0.00024141,2]
[310069211,1704300547237,-1145.97603731,0.00024141,2]
[310069212,1704300547256,-20802.94450653,0.00024141,2]
[310069213,1704300547275,-198.55633635,0.00024141,2]
[310069214,1704300547294,-155.56211584,0.00024141,2]
[310069215,1704300547314,-1645.94146869,0.00024142,2]
[310069216,1704300548611,154.75239617,0.00021727,4]
[310069217,1704300549096,-165.17603871,0.00024041,2]
[310069218,1704300549117,-444.20990833,0.00024142,2]
[310069219,1704300549139,-200.0,0.00024142,2]
[310069220,1704300549161,-313.71032376,0.00024142,2]
[310069221,1704300549182,-164.48834273,0.00024142,2]
[310069222,1704300549203,-924.18644533,0.00024143,2]
[310069223,1704300549227,-154.75239617,0.00024143,2]
[310069224,1704300549250,-31585.70326224,0.00024143,2]
[310069225,1704300551304,-816.43373886,0.00024143,2]
[310069226,1704300551336,-225.16229629,0.00024143,2]
[310069227,1704300554098,-165.17603869,0.00024046,2]
[310069228,1704300554121,-202.0129663,0.00024141,2]
[310069229,1704300554143,-20831.85137104,0.00024142,2]
[310069230,1704300554164,-45623.67436042,0.00024143,2]
[310069231,1704300554185,-154.75239617,0.00024144,2]
[310069232,1704300554208,-641.96499442,0.00024144,2]
[310069233,1704300554235,-8276.62,0.00024145,3]
[310069234,1704300554257,-155.18941918,0.00024155,2]
[310069235,1704300554278,-575.11604193,0.00024161,2]
[310069236,1704300554300,-347.44332263,0.00024554,2]
[310069237,1704300554321,-196.29354506,0.00024562,2]
[310069238,1704300554342,-166.666666,0.00024618,2]
[310069239,1704300554365,-520.2185,0.00024654,2]
[310069240,1704300554386,-1029.81880318,0.00024655,2]
[310069241,1704300554406,-1151.3045086,0.00024662,2]
[310069242,1704300554427,-155.61952728,0.00024662,2]
[310069243,1704300554447,-154.90700632,0.00024662,2]
[310069244,1704300554471,-173.94845341,0.00024662,2]
[310069245,1704300554491,-155.33259091,0.00024662,2]
[310069246,1704300554512,-154.81422293,0.00024662,2]
[310069247,1704300554533,-155.37485297,0.00024662,2]
[310069248,1704300554554,-225.88015689,0.00024663,2]
[310069249,1704300554574,-1804.89310153,0.00024663,2]
[310069250,1704300554595,-683.3636573,0.00024666,2]
[310069251,1704300554615,-155.11189304,0.00024876,2]
[310069252,1704300554636,-1002.99295177,0.00025,2]
[310069253,1704300554657,-612.96786415,0.00025,2]
[310069254,1704300554679,-166.666666,0.00025239,2]
[310069255,1704300554700,-166.666666,0.00025859,2]
[310069256,1704300554723,-524.84202363,0.00025862,2]
[310069257,1704300554744,-347.44332259,0.00026031,2]
[310069258,1704300554766,-190.08336812,0.00026119,2]
[310069259,1704300554786,-447.25463884,0.00026121,20]
[310069260,1704300554807,-26377.44033991,0.00026132,2]
[310069261,1704300554826,-233.4137136,0.00026368,2]
[310069262,1704300554847,-1193.2978632,0.00026394,2]
[310069263,1704300554867,-859.47841956,0.00026394,2]
[310069264,1704300554887,-322.38366746,0.00026394,2]
[310069265,1704300554908,-157.77952975,0.00026394,2]
[310069266,1704300554930,-154.76784823,0.00026395,2]
[310069267,1704300554951,-3732.74533379,0.00026395,2]
[310069268,1704300554974,-4781.11668773,0.00026396,2]
[310069269,1704300554995,-154.90700632,0.00026396,2]
[310069270,1704300555014,-4431.99090233,0.00026396,2]
[310069271,1704300555037,-466.12469227,0.00026396,2]
[310069272,1704300555058,-542.02553755,0.00026396,2]
[310069273,1704300555079,-154.79876161,0.00026396,2]
[310069274,1704300555100,-264.3616191,0.00026396,2]
[310069275,1704300555122,-154.82968734,0.00026396,2]
[310069276,1704300555144,-1584.80241164,0.00026396,2]
[310069277,1704300555238,-300.83380095,0.00026396,2]
[310069278,1704300555261,-275.77612835,0.00026397,2]
[310069279,1704300555282,-2631.68489228,0.00026397,2]
[310069280,1704300555302,-265.7864849,0.00026397,2]
[310069281,1704300555322,-748.52761349,0.00026397,2]
[310069282,1704300555343,-166.32510416,0.00026397,2]
[310069283,1704300555364,-220.5623413,0.00026398,2]
[310069284,1704300555384,-33556.96751499,0.00026398,7]
[310069285,1704300555405,-1243.66679375,0.00026398,2]
[310069286,1704300555426,-620.69637718,0.000264,2]
[310069287,1704300555446,-154.84515485,0.00026621,2]
[310069288,1704300555470,-154.84515485,0.00026621,2]
[310069289,1704300555490,-200.0,0.00027134,15]
[310069290,1704300555512,-347.44332259,0.00027508,2]
[310069291,1704300555532,-620.03481886,0.0002772,2]
[310069292,1704300555553,-344.31973606,0.00028,2]
[310069293,1704300555578,-5210.01915065,0.00028097,2]
[310069294,1704300555598,-2074.80218576,0.00028097,2]
[310069295,1704300555619,-1031.96154746,0.00028097,2]
[310069296,1704300555639,-368.84438132,0.00028097,2]
[310069297,1704300555661,-347.44332259,0.00028984,2]
[310069298,1704300555682,-620.00174094,0.00029106,2]
[310069299,1704300555702,-1320.81396188,0.000297,2]
[310069300,1704300555725,-280.0,0.00029847,15]
[310069301,1704300555746,-1235.48556452,0.00029999,2]
[310069302,1704300555766,-348.22,0.00029999,2]
[310069303,1704300555787,-348.22,0.00029999,2]
[310069304,1704300555807,-348.22,0.00029999,2]
[310069305,1704300555827,-7025.05114454,0.0003,4]
[310069306,1704300555847,-6534.9223021,0.0003,4]
[310069307,1704300555868,-154.78330338,0.0003,4]
[310069308,1704300555888,-155.95620918,0.0003,4]
[310069309,1704300555908,-783.278067,0.0003,4]
[310069310,1704300555928,-322.3814999,0.0003,3]
[310069311,1704300555949,-155.18994402,0.0003,30]
[310069312,1704300555971,-67143.19051751,0.0003,2]
[310069313,1704300560123,-165.17603869,0.0002405,2]
[310069314,1704300560145,-154.75239617,0.00024142,2]
[310069315,1704300560167,-1678.44623893,0.00026386,2]
[310069316,1704300560190,-5747.65,0.00026387,3]
[310069317,1704300560212,-763.98402487,0.00026395,2]
[310069318,1704300560235,-47607.40666941,0.0003,2]
[310069319,1704300564106,-165.17603869,0.00024055,2]
[310069320,1704300564127,-2090.15137702,0.00026385,2]
[310069321,1704300564152,-154.8915141,0.00026385,2]
[310069322,1704300564174,-3280.01501752,0.00026385,2]
[310069323,1704300564196,-20802.94450653,0.00026386,2]
[310069324,1704300564218,-1061.09102681,0.00026386,2]
[310069325,1704300564239,-2116.63115803,0.0003,2]
[310069326,1704300576244,-261.47036705,0.00026385,2]
[310069327,1704300576273,-271.2083445,0.00026385,2]
[310069328,1704300576306,-304.58694802,0.00026385,2]
[310069329,1704300576339,-461.56428934,0.00026385,2]
[310069330,1704300576368,-76.81738536,0.00026385,2]
[310069331,1704300591151,3819.9201243,0.0003,120]
[310069332,1704300601688,-864.77860625,0.00026385,2]
[310069333,1704300614299,-500000.0,0.00048619,30]
[310069363,1704300632135,-2142.25,0.00026385,2]
[310069465,1704300638799,-154.75239617,0.00026384,4]
[310069466,1704300638808,-41163.83727703,0.00026385,2]
[310069467,1704300638819,-16941.64013424,0.00026385,2]
[310069468,1704300638829,-344.31973606,0.00028,2]
[310069469,1704300638838,-200.0,0.00029022,15]
[310069470,1704300638848,-4789.71,0.00029989,3]
[310069471,1704300638858,-3991.43,0.00029989,3]
[310069472,1704300638867,-1263.99402759,0.00029998,2]
[310069473,1704300638877,-154.78330029,0.00029998,2]
[310069474,1704300638886,-636.65335406,0.00029998,2]
[310069475,1704300638895,-1727.15697888,0.00029998,2]
[310069476,1704300638905,-167.40216866,0.00029998,2]
[310069477,1704300638914,-471.98777252,0.00029998,2]
[310069478,1704300638923,-155.30230041,0.00029998,2]
[310069479,1704300638932,-641.96499442,0.00029999,2]
[310069480,1704300638941,-309.53116607,0.00029999,2]
[310069481,1704300638950,-155.38327977,0.00029999,2]
[310069482,1704300638959,-16231.88394994,0.00029999,2]
[310069483,1704300638971,-368.84188521,0.00029999,2]
[310069484,1704300638980,-1127.03178565,0.0003,2]
[310069485,1704300638992,-142002.8699694,0.0003,2]
[310069486,1704300639001,-237.0,0.0003,2]
[310069487,1704300639010,-6534.9223021,0.0003,4]
[310069488,1704300639019,-409.03286702,0.0003,2]
[310069489,1704300639029,-577.5653008,0.0003,4]
[310069490,1704300639039,-347.44332259,0.00030461,2]
[310069491,1704300639049,-620.00008705,0.00030561,2]
[310069492,1704300639063,-150.75878594,0.00031214,120]
[310069493,1704300639073,-150.75878594,0.00031851,30]
[310069494,1704300639082,-280.0,0.00031925,15]
[310069495,1704300639091,-172.35652391,0.00032202,5]
[310069496,1704300639101,-150.75878594,0.00032502,7]
[310069497,1704300639111,-237.0,0.00033,2]
[310069498,1704300639120,-24900.0,0.00033128,2]
[310069499,1704300639129,-150.75878594,0.00033165,4]
[310069500,1704300639139,-150.75878594,0.00033842,2]
[310069501,1704300639150,-4657.66153763,0.00034,2]
[310069502,1704300639162,-1000.0,0.00034,7]
[310069503,1704300639171,-309.6903097,0.0003408,4]
[310069504,1704300639180,-1284.528743,0.00034521,2]
[310069505,1704300639190,-590.27084275,0.00035,2]
[310069506,1704300639199,-4177.42015254,0.00035,4]
[310069507,1704300639208,-11136.3540509,0.00035,4]
[310069508,1704300639217,-1454.45537407,0.00035,14]
[310069509,1704300639227,-154.79876161,0.00035,6]
[310069510,1704300639237,-3538.7366841,0.00035,2]
[310069511,1704300639246,-391.0,0.00035117,15]
[310069512,1704300639256,-228.0,0.00035452,2]
[310069513,1704300639265,-1118.948982,0.00035463,2]
[310069514,1704300639275,-521.418258,0.00035616,120]
[310069515,1704300639285,-1284.528743,0.00035798,2]
[310069516,1704300639295,-237.0,0.00036,2]
[310069517,1704300639304,-10599.37406358,0.0003686,4]
[310069518,1704300639314,-4444.97124731,0.0003695,2]
[310069519,1704300639323,-1284.528743,0.00037075,2]
[310069520,1704300639332,-150.75878594,0.00037602,2]
[310069521,1704300639341,-250.09073482,0.00037602,2]
[310069522,1704300639350,-4779.79120143,0.00038,30]
[310069523,1704300639360,-239.48878468,0.00038054,4]
[310069524,1704300639370,-683.05428955,0.00038054,4]
[310069525,1704300639380,-1464.41511106,0.00038054,4]
[310069526,1704300639390,-301.51757188,0.00038234,4]
[310069527,1704300639399,-1284.528743,0.00038352,2]
[310069528,1704300639409,-500.0,0.00038356,2]
[310069529,1704300639418,-200.0,0.00038629,30]
[310069530,1704300639428,-348.0,0.00038629,30]
[310069531,1704300639438,-278.0,0.0003874,2]
[310069532,1704300639447,-1245.95452284,0.000388,45]
[310069533,1704300639459,-603.03514377,0.00038876,7]
[310069534,1704300639469,-5068.11306796,0.00038913,2]
[310069535,1704300639478,-150.0,0.00039252,60]
[310069536,1704300639488,-150.0,0.00039252,60]
[310069537,1704300639497,-150.0,0.00039262,60]
[310069538,1704300639507,-150.0,0.00039262,60]
[310069539,1704300639517,-150.0,0.00039272,60]
[310069540,1704300639528,-150.0,0.00039272,60]
[310069541,1704300639538,-414.01983592,0.00039282,2]
[310069542,1704300639549,-479.59026277,0.00039301,2]
[310069543,1704300639558,-262.5,0.00039301,2]
[310069544,1704300639568,-4146.01508639,0.00039301,2]
[310069545,1704300639578,-779.54251922,0.00039301,2]
[310069546,1704300639587,-233.86275576,0.00039311,2]
[310069547,1704300639596,-6592.46468198,0.00039321,2]
[310069576,1704300641194,-1131.64037124,0.00039321,2]
[310069584,1704300641260,-3819.39555084,0.00039321,2]
[310069586,1704300641269,-1947.96572693,0.00039321,2]
[310069588,1704300641283,-584.38971808,0.00039321,2]
[310069590,1704300641292,-166.72715655,0.0003953,4]
[310069592,1704300641302,-1284.528743,0.0003963,2]
[310069594,1704300641311,-1206.07028754,0.00039861,30]
[310069596,1704300641320,-4031.97114424,0.0003999,4]
[310069598,1704300641329,-155.15720622,0.0004,4]
[310069601,1704300641339,-1278.30335464,0.0004,4]
[310069604,1704300641348,-1224.58434987,0.0004,14]
[310069607,1704300641357,-371.04881992,0.0004,4]
[310069609,1704300641367,-2898.87837235,0.0004,30]
[310069611,1704300641376,-190.97216635,0.00040088,2]
[310069613,1704300641386,-172.35652391,0.00040361,9]
[310069615,1704300641395,-8222.43726441,0.00040919,2]
[310069617,1704300641404,-1000.0,0.00041,41]
[310069619,1704300641413,-521.418258,0.00041553,120]
[310069620,1704300641423,-348.2,0.00041822,7]
[310069622,1704300641432,-348.2,0.00041822,7]
[310069624,1704300641442,-348.2,0.00041822,7]
[310069626,1704300641452,-348.2,0.00041822,7]
[310069628,1704300641461,-348.2,0.00041822,7]
[310069630,1704300641470,-348.2,0.00041822,7]
[310069631,1704300641480,-174.11,0.00041822,7]
[310069632,1704300641489,-478.80867117,0.00041822,2]
[310069633,1704300641499,-499.25808482,0.00041822,2]
[310069634,1704300641508,-690.70547626,0.00041823,3]
[310069635,1704300641517,-9858.90538845,0.00041823,2]
[310069636,1704300641531,-1684.65653087,0.00041823,2]
[310069637,1704300641942,-53828.96122781,0.00041823,2]
[310069638,1704300641953,-1316.66695482,0.00041823,2]
[310070001,1704300645967,-608.81614886,0.00039327,2]
[310070003,1704300645976,-236.84755332,0.00041823,2]
[310070089,1704300646804,-0.84271249,0.00041823,2]
[310070091,1704300646816,-8660.0,0.00041823,2]
[310070094,1704300646827,-3239.97612938,0.00041823,2]
[310071420,1704300838958,269.32428785,0.00025,2]
[310071421,1704300838983,467.92699172,0.00025,2]
[310071422,1704300851973,648.7474286,0.000125,2]
[310071423,1704300852000,5899.9015509,0.000125,2]
[310071426,1704300871544,687.58936953,0.00021,2]
[310071427,1704300896215,-154.75239617,0.00024994,2]
[310071428,1704300896239,-328.2954028,0.00024995,2]
[310071429,1704300896262,-273.13997523,0.00024995,2]
[310071430,1704300896289,-924.18644533,0.00024996,2]
[310071431,1704300896310,-2990.08384051,0.00024996,2]
[310071432,1704300896333,-245.62976884,0.00024996,2]
[310071433,1704300896354,-873.72208253,0.00024997,2]
[310071434,1704300896376,-230.12748224,0.00024997,2]
[310071435,1704300896398,-170.1709713,0.00024997,2]
[310071436,1704300896420,-2067.23046819,0.00024997,2]
[310071437,1704300896442,-154.75239617,0.00024998,2]
[310071438,1704300896466,-900.11478533,0.00024999,2]
[310071439,1704300896488,-22795.79398536,0.00024999,2]
[310071440,1704300901880,1464.41511106,0.00018748,2]
[310071441,1704300998847,-5000.0,0.00023992,2]
[310071442,1704300998940,-5000.0,0.00023992,2]
[310071443,1704300999077,-5000.0,0.00023992,2]
[310071444,1704300999200,-5000.0,0.00023992,2]
[310071445,1704300999332,-4900.0,0.00023992,2]
[310071446,1704301015258,-1838.05698496,0.00023992,2]
[310071447,1704301015457,-37.51136704,0.00023992,2]
[310071448,1704301037884,-342.88902756,0.00023992,2]
[310071449,1704301038086,-6.99773526,0.00023992,2]
[310071450,1704301041998,-5000.0,0.00023992,2]
[310071451,1704301042240,-210.9786353,0.00023992,2]
[310071452,1704301047296,-200.0,0.00023992,2]
[310071453,1704301047604,-2.17463769,0.00023992,2]
[310071454,1704301047995,174.684876,0.00023515,2]
[310071455,1704301048761,23.14048631,0.00023992,2]
[310071456,1704301049670,-131.62736192,0.00023992,2]
[310071457,1704301049703,-149.03994403,0.00023992,2]
[310071458,1704301049861,-5.7279042,0.00023992,2]
[310071459,1704301050146,274.93940175,0.00017994,5]
[310071460,1704301050177,280.66730595,0.00017994,5]
[310071461,1704301050206,965.50787916,0.00017994,5]
[310071462,1704301051035,-5000.0,0.00023992,2]
[310071463,1704301051232,-5000.0,0.00023992,2]
[310071464,1704301051713,-260.65340644,0.00023992,2]
[310071465,1704301051896,-5.31945727,0.00023992,2]
[310071466,1704301051927,-255.33394917,0.00023992,2]
[310071467,1704301052082,-260.65340644,0.00023992,2]
[310071468,1704301052195,-30.00595748,0.00023992,2]
[310071469,1704301053533,349.88676282,0.00023992,2]
[310071470,1704301055512,342.88902756,0.00023992,2]
[310071471,1704301055976,-5000.0,0.00023992,2]
[310071472,1704301056178,-5000.0,0.00023992,2]
[310071473,1704301056278,-5000.0,0.00023992,2]
[310071474,1704301056479,-5000.0,0.00023992,2]
[310071475,1704301056579,-2090.15137702,0.00023991,2]
[310071476,1704301056612,-2909.84862298,0.00023992,2]
[310071477,1704301056784,-5000.0,0.00023992,2]
[310071478,1704301056902,-5000.0,0.00023992,2]
[310071479,1704301057081,-5000.0,0.00023992,2]
[310071480,1704301057158,-5000.0,0.00023992,2]
[310071481,1704301057286,-5000.0,0.00023992,2]
[310071482,1704301057397,-5000.0,0.00023992,2]
[310071483,1704301057641,-5000.0,0.00023992,2]
[310071484,1704301057745,-5000.0,0.00023992,2]
[310071485,1704301057798,-5000.0,0.00023992,2]
[310071486,1704301057883,-5000.0,0.00023992,2]
[310071487,1704301057993,-5000.0,0.00023992,2]
[310071488,1704301058132,-5000.0,0.00023992,2]
[310071489,1704301058237,-5000.0,0.00023992,2]
[310071490,1704301058338,-5000.0,0.00023992,2]
[310071491,1704301058567,-5000.0,0.00023992,2]
[310071492,1704301058610,-5000.0,0.00023992,2]
[310071493,1704301058684,-5000.0,0.00023992,2]
[310071494,1704301058876,-5000.0,0.00023992,2]
[310071495,1704301058992,-5000.0,0.00023992,2]
[310071496,1704301059086,-5000.0,0.00023992,2]
[310071497,1704301059202,-5000.0,0.00023992,2]
[310071498,1704301059299,-5000.0,0.00023992,2]
[310071499,1704301059430,-5000.0,0.00023992,2]
[310071500,1704301059539,-5000.0,0.00023992,2]
[310071501,1704301059673,-5000.0,0.00023992,2]
[310071502,1704301059764,-5000.0,0.00023992,2]